fUSD/lending_fUSD_20240408
["ID","MTS","AMOUNT","RATE_DAILY","PERIOD"]
[321915232,1712617859752,-4401.88,0.00024657,2]
[321915233,1712617859762,-4584.26,0.00024657,2]
[321915234,1712617859771,-500.0,0.00024657,2]
[321915235,1712617859780,-645.48,0.00024657,2]
[321915236,1712617859789,-511.58412121,0.00024657,2]
[321915237,1712617859799,-2149.64,0.00024657,2]
[321915238,1712617859812,-500.0,0.00024657,2]
[321915239,1712617859821,-4299.93,0.00024657,2]
[321915240,1712617859831,-9518.29,0.00024657,2]
[321915241,1712617859841,-500.0,0.00024657,2]
[321915242,1712617859851,-6432.36,0.00024657,2]
[321915243,1712617859860,-2509.44,0.00024657,2]
[321915244,1712617859869,-615.42,0.00024657,2]
[321915245,1712617859879,-500.0,0.00024657,2]
[321915246,1712617859890,-4048.03,0.00024657,2]
[321915247,1712617859900,-500.0,0.00024657,2]
[321915248,1712617859909,-500.0,0.00024657,2]
[321915249,1712617859919,-500.0,0.00024657,2]
[321915250,1712617859928,-500.0,0.00024657,2]
[321915251,1712617859938,-221.19648714,0.00024657,2]
[321915252,1712617859947,-1120.09,0.00024657,2]
[321915253,1712617859956,-500.0,0.00024657,2]
[321915254,1712617859965,-9137.39,0.00024657,2]
[321915255,1712617859976,-1580.11,0.00024657,2]
[321915256,1712617859986,-3796.75,0.00024657,2]
[321915257,1712617859995,-500.0,0.00024657,2]
[321915258,1712617860005,-500.0,0.00024657,2]
[321915259,1712617860014,-500.0,0.00024657,2]
[321915260,1712617860025,-5425.54,0.00024657,2]
[321915261,1712617860034,-500.0,0.00024657,2]
[321915262,1712617860044,-500.0,0.00024657,2]
[321915263,1712617860055,-500.0,0.00024657,2]
[321915264,1712617860066,-500.0,0.00024657,2]
[321915265,1712617860075,-500.0,0.00024657,2]
[321915266,1712617860085,-500.0,0.00024657,2]
[321915267,1712617860095,-500.0,0.00024657,2]
[321915268,1712617860105,-2305.31,0.00024657,2]
[321915269,1712617860115,-500.0,0.00024657,2]
[321915270,1712617860125,-500.0,0.00024657,2]
[321915271,1712617860135,-500.0,0.00024657,2]
[321915272,1712617860144,-500.0,0.00024657,2]
[321915273,1712617860155,-500.0,0.00024657,2]
[321915274,1712617860165,-4160.74,0.00024657,2]
[321915275,1712617860175,-500.0,0.00024657,2]
[321915276,1712617860185,-3870.76,0.00024657,2]
[321915277,1712617860194,-500.0,0.00024657,2]
[321915278,1712617860204,-500.0,0.00024657,2]
[321915279,1712617860213,-500.0,0.00024657,2]
[321915280,1712617860224,-500.0,0.00024657,2]
[321915281,1712617860233,-500.0,0.00024657,2]
[321915282,1712617860242,-500.0,0.00024657,2]
[321915283,1712617860251,-1334.67,0.00024657,2]
[321915284,1712617860261,-500.0,0.00024657,2]
[321915285,1712617860270,-231.01414698,0.00024657,2]
[321915286,1712617860280,-447.10142217,0.00024657,2]
[321915287,1712617860289,-1321.19,0.00024657,2]
[321915288,1712617860299,-620.28198086,0.00024657,2]
[321915289,1712617860310,-4106.67,0.00024657,2]
[321915290,1712617860321,-1488.6,0.00024657,2]
[321915291,1712617860331,-500.0,0.00024657,2]
[321915292,1712617860342,-500.0,0.00024657,2]
[321915293,1712617860352,-12370.92,0.00024657,2]
[321915294,1712617860362,-500.0,0.00024657,2]
[321915295,1712617860372,-503.13,0.00024657,2]
[321915296,1712617860381,-2984.57,0.00024657,2]
[321915297,1712617860391,-214.33010553,0.00024657,2]
[321915298,1712617860401,-2049.69,0.00024657,2]
[321915299,1712617860411,-2405.05,0.00024657,2]
[321915300,1712617860421,-500.0,0.00024657,2]
[321915301,1712617860431,-500.0,0.00024657,2]
[321915302,1712617860441,-500.0,0.00024657,2]
[321915303,1712617860451,-500.0,0.00024657,2]
[321915304,1712617860461,-151.0,0.00024657,7]
[321915305,1712617860471,-151.0,0.00024657,7]
[321915306,1712617860480,-1020.47,0.00024657,2]
[321915307,1712617860489,-500.0,0.00024657,2]
[321915308,1712617860499,-1216.86,0.00024657,2]
[321915309,1712617860508,-32757.86,0.00024657,2]
[321915310,1712617860517,-500.0,0.00024657,2]
[321915311,1712617860526,-500.0,0.00024657,2]
[321915312,1712617860535,-500.0,0.00024657,2]
[321915313,1712617860544,-500.0,0.00024657,2]
[321915314,1712617860553,-500.0,0.00024657,2]
[321915315,1712617860563,-8084.76,0.00024657,2]
[321915316,1712617860572,-528.14,0.00024657,2]
[321915317,1712617860581,-500.0,0.00024657,2]
[321915318,1712617860589,-500.0,0.00024657,2]
[321915319,1712617860598,-1498.6,0.00024657,2]
[321915320,1712617860608,-2081.27,0.00024657,2]
[321915321,1712617860617,-500.0,0.00024657,2]
[321915322,1712617860626,-9509.89,0.00024657,2]
[321915323,1712617860636,-500.0,0.00024657,2]
[321915324,1712617860645,-965.41,0.00024657,2]
[321915325,1712617860654,-4299.73,0.00024657,2]
[321915326,1712617860664,-500.0,0.00024657,2]
[321915327,1712617860674,-500.0,0.00024657,2]
[321915328,1712617860683,-500.0,0.00024657,2]
[321915329,1712617860692,-3461.22,0.00024657,2]
[321915330,1712617860701,-151.0,0.00024657,7]
[321915331,1712617860710,-500.0,0.00024657,2]
[321915332,1712617860719,-500.0,0.00024657,2]
[321915333,1712617860728,-511.84,0.00024657,2]
[321915334,1712617860737,-500.0,0.00024657,2]
[321915335,1712617860747,-500.0,0.00024657,2]
[321915336,1712617860756,-849.68,0.00024657,2]
[321915337,1712617860766,-500.0,0.00024657,2]
[321915338,1712617860775,-6648.86,0.00024657,2]
[321915339,1712617860784,-500.0,0.00024657,2]
[321915340,1712617860794,-2595.5,0.00024657,2]
[321915341,1712617860804,-500.0,0.00024658,2]
[321915342,1712617860816,-150.0,0.00024662,2]
[321915343,1712617860825,-150.0,0.00024692,2]
[321915344,1712617860835,-1000.0,0.000247,2]
[321915345,1712617860844,-150.0,0.00024717,2]
[321915346,1712617860854,-150.0,0.00024719,2]
[321915347,1712617860863,-150.0,0.00024723,2]
[321915348,1712617860873,-150.0,0.00024728,2]
[321915349,1712617860882,-150.0,0.00024732,2]
[321915350,1712617860895,-150.0,0.00024733,2]
[321915351,1712617860904,-150.0,0.00024742,2]
[321915352,1712617860914,-2000.0,0.00024753,2]
[321915353,1712617860923,-200.0,0.00024753,2]
[321915354,1712617860933,-2000.0,0.00024753,2]
[321915355,1712617860943,-200.0,0.00024753,2]
[321915356,1712617860953,-2000.0,0.00024753,2]
[321915357,1712617860962,-200.0,0.00024753,2]
[321915358,1712617860973,-200.0,0.00024753,2]
[321915359,1712617860983,-150.0,0.00024762,2]
[321915360,1712617861107,-150.0,0.00024767,2]
[321915361,1712617861154,-150.0,0.00024767,2]
[321915362,1712617861164,-1500.0,0.00024773,2]
[321915363,1712617861174,-150.0,0.00024775,2]
[321915364,1712617861185,-151.25194137,0.00024784,2]
[321915365,1712617861194,-150.0,0.00024788,2]
[321915366,1712617861205,-300.0,0.00024792,2]
[321915367,1712617861215,-10033.04772914,0.00024796,2]
[321915368,1712617861225,-2223.24347368,0.000248,2]
[321915369,1712617861235,-150.0,0.00024841,2]
[321915370,1712617861246,-150.0,0.00024844,2]
[321915371,1712617861255,-150.0,0.00024846,2]
[321915372,1712617861265,-150.0,0.00024851,2]
[321915373,1712617861275,-78693.72486265,0.00024857,2]
[321915374,1712617861285,-1500.0,0.00024858,2]
[321915375,1712617861295,-150.0,0.00024863,2]
[321915376,1712617861305,-150.0,0.00024873,2]
[321915377,1712617861315,-150.0,0.00024892,2]
[321915378,1712617861325,-150.0,0.00024894,2]
[321915379,1712617861335,-150.0,0.00024895,2]
[321915380,1712617861345,-1241.18,0.000249,2]
[321915381,1712617861354,-1000.0,0.000249,2]
[321915382,1712617861364,-650.9,0.00024901,2]
[321915383,1712617861373,-150.0,0.00024902,2]
[321915384,1712617861382,-156.57957574,0.00024904,4]
[321915385,1712617861392,-150.0,0.00024904,4]
[321915386,1712617861401,-253.1369202,0.00024904,4]
[321915387,1712617861410,-150.0,0.00024911,2]
[321915388,1712617861419,-150.0,0.00024926,2]
[321915389,1712617861429,-150.0,0.00024928,2]
[321915390,1712617861438,-150.0,0.00024928,2]
[321915391,1712617861448,-160.20563986,0.00024929,2]
[321915392,1712617861457,-215.43117381,0.00024929,2]
[321915393,1712617861467,-500.0,0.00024931,2]
[321915394,1712617861479,-626.95,0.00024931,2]
[321915395,1712617861491,-500.0,0.00024931,2]
[321915396,1712617861501,-275.70043534,0.00024931,2]
[321915397,1712617861511,-500.0,0.00024931,2]
[321915398,1712617861521,-519.98335579,0.00024931,2]
[321915399,1712617861533,-500.0,0.00024931,2]
[321915400,1712617861543,-500.0,0.00024931,2]
[321915401,1712617861554,-500.0,0.00024931,2]
[321915402,1712617861563,-500.0,0.00024931,2]
[321915403,1712617861574,-500.0,0.00024931,2]
[321915404,1712617861584,-500.0,0.00024931,2]
[321915405,1712617861595,-515.21466201,0.00024931,2]
[321915406,1712617861606,-500.0,0.00024931,2]
[321915407,1712617861615,-508.62922504,0.00024931,2]
[321915408,1712617861625,-500.0,0.00024931,2]
[321915409,1712617861636,-500.0,0.00024931,2]
[321915410,1712617861647,-500.0,0.00024931,2]
[321915411,1712617861657,-500.0,0.00024931,2]
[321915412,1712617861667,-500.0,0.00024931,2]
[321915413,1712617861677,-500.0,0.00024931,2]
[321915414,1712617861687,-500.0,0.00024931,2]
[321915415,1712617861697,-374.46137945,0.00024931,2]
[321915416,1712617861707,-500.0,0.00024931,2]
[321915417,1712617861717,-500.0,0.00024931,2]
[321915418,1712617861729,-500.0,0.00024931,2]
[321915419,1712617861739,-500.0,0.00024931,2]
[321915420,1712617861749,-500.0,0.00024931,2]
[321915421,1712617861759,-520.34022945,0.00024931,2]
[321915422,1712617861768,-492.18818861,0.00024931,2]
[321915423,1712617861779,-500.0,0.00024931,2]
[321915424,1712617861791,-500.0,0.00024931,2]
[321915425,1712617861801,-500.0,0.00024931,2]
[321915426,1712617861815,-500.0,0.00024931,2]
[321915427,1712617861824,-1250.88,0.00024931,2]
[321915428,1712617861834,-500.0,0.00024931,2]
[321915429,1712617861844,-1032.1,0.00024931,2]
[321915430,1712617861855,-500.0,0.00024931,2]
[321915431,1712617861864,-536.93623865,0.00024931,2]
[321915432,1712617861874,-514.21103425,0.00024931,2]
[321915433,1712617861884,-500.0,0.00024931,2]
[321915434,1712617861896,-500.0,0.00024931,2]
[321915435,1712617861906,-500.0,0.00024931,2]
[321915436,1712617861916,-500.0,0.00024931,2]
[321915437,1712617861926,-500.0,0.00024931,2]
[321915438,1712617861936,-500.65086633,0.00024931,2]
[321915439,1712617861945,-500.0,0.00024931,2]
[321915440,1712617861956,-500.0,0.00024931,2]
[321915441,1712617861967,-500.0,0.00024931,2]
[321915442,1712617861980,-500.0,0.00024931,2]
[321915443,1712617861990,-500.0,0.00024931,2]
[321915444,1712617862000,-500.0,0.00024931,2]
[321915445,1712617862009,-500.0,0.00024931,2]
[321915446,1712617862019,-500.0,0.00024931,2]
[321915447,1712617862028,-500.0,0.00024931,2]
[321915448,1712617862038,-500.0,0.00024931,2]
[321915449,1712617862048,-500.0,0.00024931,2]
[321915450,1712617862058,-500.0,0.00024931,2]
[321915451,1712617862069,-500.0,0.00024931,2]
[321915452,1712617862080,-500.0,0.00024931,2]
[321915453,1712617862090,-500.0,0.00024931,2]
[321915454,1712617862100,-500.0,0.00024931,2]
[321915455,1712617862110,-500.0,0.00024931,2]
[321915456,1712617862120,-506.01144124,0.00024931,2]
[321915457,1712617862131,-567.77,0.00024931,2]
[321915458,1712617862141,-500.0,0.00024931,2]
[321915459,1712617862151,-500.0,0.00024931,2]
[321915460,1712617862162,-500.0,0.00024931,2]
[321915461,1712617862172,-199.866325,0.00024931,7]
[321915462,1712617862183,-199.866325,0.00024931,7]
[321915463,1712617862192,-199.866325,0.00024931,7]
[321915464,1712617862202,-500.0,0.00024931,2]
[321915465,1712617862211,-500.0,0.00024931,2]
[321915466,1712617862221,-500.0,0.00024931,2]
[321915467,1712617862231,-199.866325,0.00024931,7]
[321915468,1712617862241,-199.866325,0.00024931,7]
[321915469,1712617862252,-199.866325,0.00024931,7]
[321915470,1712617862262,-500.0,0.00024931,2]
[321915471,1712617862273,-549.63,0.00024931,2]
[321915472,1712617862283,-500.0,0.00024931,2]
[321915473,1712617862293,-603.48,0.00024931,2]
[321915474,1712617862304,-500.0,0.00024931,2]
[321915475,1712617862314,-500.0,0.00024931,2]
[321915476,1712617862325,-500.0,0.00024931,2]
[321915477,1712617862334,-521.92,0.00024931,2]
[321915478,1712617862346,-500.0,0.00024931,2]
[321915479,1712617862355,-1437.56,0.00024931,2]
[321915480,1712617862365,-500.0,0.00024931,2]
[321915481,1712617862375,-500.0,0.00024931,2]
[321915482,1712617862386,-795.48,0.00024931,2]
[321915483,1712617862396,-500.0,0.00024931,2]
[321915484,1712617862406,-500.0,0.00024931,2]
[321915485,1712617862416,-500.0,0.00024931,2]
[321915486,1712617862426,-500.0,0.00024931,2]
[321915487,1712617862437,-500.0,0.00024931,2]
[321915488,1712617862447,-500.0,0.00024931,2]
[321915489,1712617862457,-500.0,0.00024931,2]
[321915490,1712617862467,-500.0,0.00024931,2]
[321915491,1712617862481,-500.0,0.00024931,2]
[321915492,1712617862491,-500.0,0.00024931,2]
[321915493,1712617862502,-500.0,0.00024931,2]
[321915494,1712617862512,-500.0,0.00024931,2]
[321915495,1712617862521,-500.0,0.00024931,2]
[321915496,1712617862532,-500.0,0.00024931,2]
[321915497,1712617862542,-500.0,0.00024931,2]
[321915498,1712617862553,-500.0,0.00024931,2]
[321915499,1712617862563,-156.4716711,0.00024931,2]
[321915500,1712617862573,-500.0,0.00024931,2]
[321915501,1712617862584,-500.0,0.00024931,2]
[321915502,1712617862594,-1514.88,0.00024931,2]
[321915503,1712617862604,-596.08272694,0.00024931,2]
[321915504,1712617862614,-500.0,0.00024931,2]
[321915505,1712617862625,-500.0,0.00024931,2]
[321915506,1712617862636,-597.7,0.00024931,2]
[321915507,1712617862647,-500.0,0.00024931,2]
[321915508,1712617862658,-500.0,0.00024931,2]
[321915509,1712617862667,-500.0,0.00024931,2]
[321915510,1712617862677,-500.0,0.00024931,2]
[321915511,1712617862686,-500.0,0.00024931,2]
[321915512,1712617862695,-500.0,0.00024931,2]
[321915513,1712617862706,-500.0,0.00024931,2]
[321915514,1712617862715,-500.0,0.00024931,2]
[321915515,1712617862726,-500.0,0.00024931,2]
[321915516,1712617862736,-500.0,0.00024931,2]
[321915517,1712617862745,-500.0,0.00024931,2]
[321915518,1712617862755,-1053.88,0.00024931,2]
[321915519,1712617862765,-500.0,0.00024931,2]
[321915520,1712617862774,-500.0,0.00024931,2]
[321915521,1712617862783,-500.0,0.00024931,2]
[321915522,1712617862793,-500.0,0.00024931,2]
[321915523,1712617862804,-500.0,0.00024931,2]
[321915524,1712617862817,-500.0,0.00024931,2]
[321915525,1712617862829,-516.83804822,0.00024931,2]
[321915526,1712617862839,-500.0,0.00024931,2]
[321915527,1712617862851,-517.2610245,0.00024931,2]
[321915528,1712617862863,-500.0,0.00024931,2]
[321915529,1712617862874,-232.60192053,0.00024931,2]
[321915530,1712617862884,-644.85,0.00024931,2]
[321915531,1712617862896,-500.0,0.00024931,2]
[321915532,1712617862906,-880.71,0.00024931,2]
[321915533,1712617862916,-500.0,0.00024931,2]
[321915534,1712617862926,-500.0,0.00024931,2]
[321915535,1712617862936,-500.0,0.00024931,2]
[321915536,1712617862946,-500.0,0.00024931,2]
[321915537,1712617862956,-500.0,0.00024931,2]
[321915538,1712617862967,-1151.99,0.00024931,2]
[321915539,1712617862978,-500.0,0.00024931,2]
[321915540,1712617862988,-500.0,0.00024931,2]
[321915541,1712617862997,-500.0,0.00024931,2]
[321915542,1712617863008,-500.0,0.00024931,2]
[321915543,1712617863018,-500.0,0.00024931,2]
[321915544,1712617863030,-500.0,0.00024931,2]
[321915545,1712617863040,-500.0,0.00024931,2]
[321915546,1712617863051,-500.0,0.00024931,2]
[321915547,1712617863061,-500.0,0.00024931,2]
[321915548,1712617863073,-500.0,0.00024931,2]
[321915549,1712617863085,-500.0,0.00024931,2]
[321915550,1712617863096,-360.52878952,0.00024931,2]
[321915551,1712617863106,-556.81105632,0.00024931,2]
[321915552,1712617863119,-509.68933866,0.00024931,2]
[321915553,1712617863131,-491.79331977,0.00024931,2]
[321915554,1712617863141,-500.0,0.00024931,2]
[321915555,1712617863151,-283.85664342,0.00024931,2]
[321915556,1712617863160,-505.46,0.00024931,2]
[321915557,1712617863170,-500.0,0.00024931,2]
[321915558,1712617863179,-500.0,0.00024931,2]
[321915559,1712617863190,-500.0,0.00024931,2]
[321915560,1712617863201,-509.84036591,0.00024931,2]
[321915561,1712617863212,-500.31231733,0.00024931,2]
[321915562,1712617863227,-500.0,0.00024931,2]
[321915563,1712617863237,-500.0,0.00024931,2]
[321915564,1712617863248,-500.0,0.00024931,2]
[321915565,1712617863257,-500.0,0.00024931,2]
[321915566,1712617863267,-706.9,0.00024931,2]
[321915567,1712617863276,-671.35,0.00024931,2]
[321915568,1712617863285,-532.1582613,0.00024931,2]
[321915569,1712617863296,-500.0,0.00024931,2]
[321915570,1712617863306,-500.0,0.00024931,2]
[321915571,1712617863317,-500.0,0.00024931,2]
[321915572,1712617863328,-500.0,0.00024931,2]
[321915573,1712617863337,-500.0,0.00024931,2]
[321915574,1712617863347,-500.0,0.00024931,2]
[321915575,1712617863356,-500.0,0.00024931,2]
[321915576,1712617863365,-425.01556762,0.00024931,2]
[321915577,1712617863683,-500.0,0.00024931,2]
[321915578,1712617863707,-450.17156073,0.00024931,2]
[321915579,1712617863718,-500.0,0.00024931,2]
[321915580,1712617863728,-518.06123686,0.00024931,2]
[321915581,1712617863737,-535.15469016,0.00024931,2]
[321915582,1712617863747,-644.38,0.00024931,2]
[321915583,1712617863758,-500.0,0.00024931,2]
[321915584,1712617863768,-500.0,0.00024931,2]
[321915585,1712617863777,-500.0,0.00024931,2]
[321915586,1712617863787,-528.676887,0.00024931,2]
[321915587,1712617863797,-500.0,0.00024931,2]
[321915588,1712617863807,-500.0,0.00024931,2]
[321915589,1712617863822,-500.0,0.00024931,2]
[321915590,1712617863833,-500.0,0.00024931,2]
[321915591,1712617863843,-500.0,0.00024931,2]
[321915592,1712617863853,-500.0,0.00024931,2]
[321915593,1712617863863,-228.20619507,0.00024931,2]
[321915594,1712617863873,-500.0,0.00024931,2]
[321915595,1712617863882,-500.0,0.00024931,2]
[321915596,1712617863893,-500.0,0.00024931,2]
[321915597,1712617863903,-500.0,0.00024931,2]
[321915598,1712617863912,-500.0,0.00024931,2]
[321915599,1712617863922,-500.0,0.00024931,2]
[321915600,1712617863931,-500.0,0.00024931,2]
[321915601,1712617863941,-1024.3,0.00024931,2]
[321915602,1712617863951,-500.0,0.00024931,2]
[321915603,1712617863960,-1133.97,0.00024931,2]
[321915604,1712617863970,-730.05,0.00024931,2]
[321915605,1712617863981,-511.80713187,0.00024931,2]
[321915606,1712617863991,-556.01115166,0.00024931,2]
[321915607,1712617864001,-500.0,0.00024931,2]
[321915608,1712617864022,-500.0,0.00024931,2]
[321915609,1712617864031,-500.0,0.00024931,2]
[321915610,1712617864040,-500.0,0.00024931,2]
[321915611,1712617864050,-1084.87,0.00024931,2]
[321915612,1712617864059,-992.51,0.00024931,2]
[321915613,1712617864068,-500.0,0.00024931,2]
[321915614,1712617864078,-500.0,0.00024931,2]
[321915615,1712617864087,-500.0,0.00024931,2]
[321915616,1712617864097,-500.0,0.00024931,2]
[321915617,1712617864107,-500.0,0.00024931,2]
[321915618,1712617864117,-500.0,0.00024931,2]
[321915619,1712617864126,-1803.81,0.00024931,2]
[321915620,1712617864135,-500.0,0.00024931,2]
[321915621,1712617864145,-500.0,0.00024931,2]
[321915622,1712617864154,-500.0,0.00024931,2]
[321915623,1712617864164,-500.0,0.00024931,2]
[321915624,1712617864173,-1200.91,0.00024931,2]
[321915625,1712617864182,-500.0,0.00024931,2]
[321915626,1712617864191,-500.0,0.00024931,2]
[321915627,1712617864201,-500.0,0.00024931,2]
[321915628,1712617864210,-500.0,0.00024931,2]
[321915629,1712617864220,-1222.71,0.00024931,2]
[321915630,1712617864229,-500.0,0.00024931,2]
[321915631,1712617864238,-500.0,0.00024931,2]
[321915632,1712617864247,-734.45,0.00024931,2]
[321915633,1712617864257,-1000.0,0.00024931,2]
[321915634,1712617864266,-500.0,0.00024931,2]
[321915635,1712617864275,-500.0,0.00024931,2]
[321915636,1712617864284,-866.01,0.00024931,2]
[321915637,1712617864294,-500.0,0.00024931,2]
[321915638,1712617864303,-500.0,0.00024931,2]
[321915639,1712617864313,-539.01964727,0.00024931,2]
[321915640,1712617864322,-500.0,0.00024931,2]
[321915641,1712617864331,-1211.67,0.00024931,2]
[321915642,1712617864340,-544.10665456,0.00024931,2]
[321915643,1712617864350,-656.64,0.00024931,2]
[321915644,1712617864359,-234.80505998,0.00024931,2]
[321915645,1712617864369,-500.0,0.00024931,2]
[321915646,1712617864378,-500.0,0.00024931,2]
[321915647,1712617864388,-500.0,0.00024931,2]
[321915648,1712617864397,-500.0,0.00024931,2]
[321915649,1712617864407,-500.0,0.00024931,2]
[321915650,1712617864416,-680.54,0.00024931,2]
[321915651,1712617864426,-563.06601639,0.00024931,2]
[321915652,1712617864436,-507.4291282,0.00024931,2]
[321915653,1712617864446,-500.0,0.00024931,2]
[321915654,1712617864455,-500.0,0.00024931,2]
[321915655,1712617864465,-500.0,0.00024931,2]
[321915656,1712617864475,-500.0,0.00024931,2]
[321915657,1712617864485,-724.0,0.00024931,2]
[321915658,1712617864494,-500.0,0.00024931,2]
[321915659,1712617864503,-500.0,0.00024931,2]
[321915660,1712617864513,-500.0,0.00024931,2]
[321915661,1712617864522,-500.0,0.00024931,2]
[321915662,1712617864531,-500.0,0.00024931,2]
[321915663,1712617864541,-500.0,0.00024931,2]
[321915664,1712617864550,-500.0,0.00024931,2]
[321915665,1712617864560,-1292.98,0.00024931,2]
[321915666,1712617864569,-500.0,0.00024931,2]
[321915667,1712617864579,-500.0,0.00024931,2]
[321915668,1712617864588,-580.79,0.00024931,2]
[321915669,1712617864599,-500.0,0.00024931,2]
[321915670,1712617864608,-857.21,0.00024931,2]
[321915671,1712617864618,-387.72928109,0.00024931,2]
[321915672,1712617864629,-790.07,0.00024931,2]
[321915673,1712617864640,-2233.81,0.00024931,2]
[321915674,1712617864650,-500.0,0.00024931,2]
[321915675,1712617864660,-702.32,0.00024931,2]
[321915676,1712617864670,-514.22,0.00024931,2]
[321915677,1712617864679,-500.0,0.00024931,2]
[321915678,1712617864689,-500.0,0.00024931,2]
[321915679,1712617864699,-500.0,0.00024931,2]
[321915680,1712617864709,-500.0,0.00024931,2]
[321915681,1712617864719,-628.34,0.00024931,2]
[321915682,1712617864731,-500.0,0.00024931,2]
[321915683,1712617864741,-881.09,0.00024931,2]
[321915684,1712617864751,-500.0,0.00024931,2]
[321915685,1712617864760,-788.14,0.00024931,2]
[321915686,1712617864770,-500.0,0.00024931,2]
[321915687,1712617864780,-689.62,0.00024931,2]
[321915688,1712617864790,-2474.78,0.00024931,2]
[321915689,1712617864800,-500.0,0.00024931,2]
[321915690,1712617864810,-500.0,0.00024931,2]
[321915691,1712617864822,-500.0,0.00024931,2]
[321915692,1712617864832,-859.82,0.00024931,2]
[321915693,1712617864842,-500.0,0.00024931,2]
[321915694,1712617864852,-543.78,0.00024931,2]
[321915695,1712617864862,-500.0,0.00024931,2]
[321915696,1712617864871,-500.0,0.00024931,2]
[321915697,1712617864882,-151.0,0.00024931,7]
[321915698,1712617864896,-500.0,0.00024931,2]
[321915699,1712617864905,-151.0,0.00024931,7]
[321915700,1712617864915,-151.0,0.00024931,7]
[321915701,1712617864924,-336.21,0.00024931,2]
[321915702,1712617864934,-500.0,0.00024931,2]
[321915703,1712617864944,-562.05001839,0.00024931,2]
[321915704,1712617864955,-500.0,0.00024931,2]
[321915705,1712617864965,-776.92,0.00024931,2]
[321915706,1712617864976,-516.42863625,0.00024931,2]
[321915707,1712617864986,-500.0,0.00024931,2]
[321915708,1712617864996,-694.65,0.00024931,2]
[321915709,1712617865006,-478.67903539,0.00024931,2]
[321915710,1712617865016,-1798.23,0.00024931,2]
[321915711,1712617865027,-500.0,0.00024931,2]
[321915712,1712617865038,-669.03,0.00024931,2]
[321915713,1712617865049,-500.0,0.00024931,2]
[321915714,1712617865059,-503.04768181,0.00024931,2]
[321915715,1712617865069,-600.0,0.00024931,2]
[321915716,1712617865079,-569.92,0.00024931,2]
[321915717,1712617865088,-500.0,0.00024931,2]
[321915718,1712617865098,-500.0,0.00024931,2]
[321915719,1712617865108,-580.77,0.00024931,2]
[321915720,1712617865118,-500.0,0.00024931,2]
[321915721,1712617865127,-163.69062477,0.00024931,2]
[321915722,1712617865137,-1593.25,0.00024931,2]
[321915723,1712617865146,-915.01,0.00024931,2]
[321915724,1712617865156,-500.0,0.00024931,2]
[321915725,1712617865167,-500.0,0.00024931,2]
[321915726,1712617865177,-500.0,0.00024931,2]
[321915727,1712617865186,-859.78,0.00024931,2]
[321915728,1712617865196,-2334.39,0.00024931,2]
[321915729,1712617865205,-1508.3,0.00024931,2]
[321915730,1712617865214,-2621.2,0.00024931,2]
[321915731,1712617865225,-687.05,0.00024931,2]